[Event "Championnat d'Europe Rapide"]
[Date "2024.12.07"]
[White "Fressinet, Laurent"]
[Black "Todorovic, Goran N"]
[WhiteElo "2588"]
[BlackElo "2256"]
[Round "6.28"]
[Result "1-0"]
[TimeControl "900+10"]

1. d4 {[%clk 00:15:17]} d5 {[%emt 00:00:03] [%clk 00:15:18]} 2. Nf3 {[%emt
00:00:03] [%clk 00:15:24]} Nf6 {[%emt 00:00:25] [%clk 00:15:03]} 3. g3 {[%emt
00:00:02] [%clk 00:15:31]} c5 {[%emt 00:00:40] [%clk 00:14:34]} 4. c4 {[%emt
00:00:03] [%clk 00:15:39]} e6 {[%emt 00:00:01] [%clk 00:14:43]} 5. Bg2 {[%emt
00:00:17] [%clk 00:15:31]} Nc6 {[%emt 00:00:03] [%clk 00:14:51]} 6. cxd5 {[%emt
00:00:15] [%clk 00:15:27]} exd5 {[%emt 00:00:02] [%clk 00:14:59]} 7. O-O {[%emt
00:00:17] [%clk 00:15:19]} Be7 {[%emt 00:00:02] [%clk 00:15:07]} 8. Nc3 {[%emt
00:00:15] [%clk 00:15:14]} O-O {[%emt 00:00:04] [%clk 00:15:13]} 9. Bf4 {[%emt
00:00:04] [%clk 00:15:20]} Bf5 {[%emt 00:01:06] [%clk 00:14:17]} 10. Rc1 {[%emt
00:00:47] [%clk 00:14:43]} c4 {[%emt 00:00:32] [%clk 00:13:55]} 11. Ne5 {[%emt
00:00:17] [%clk 00:14:35]} h6 {[%emt 00:00:19] [%clk 00:13:46]} 12. Qa4 {[%emt
00:01:52] [%clk 00:12:53]} Rc8 {[%emt 00:02:04] [%clk 00:11:53]} 13. Nxc6 {[%emt
00:00:44] [%clk 00:12:19]} bxc6 {[%emt 00:00:05] [%clk 00:11:58]} 14. b3 {[%emt
00:00:17] [%clk 00:12:12]} cxb3 {[%emt 00:00:42] [%clk 00:11:26]} 15. axb3
{[%emt 00:00:12] [%clk 00:12:09]} Re8 {[%emt 00:00:27] [%clk 00:11:10]} 16. Qxa7
{[%emt 00:01:28] [%clk 00:10:51]} Bb4 {[%emt 00:00:10] [%clk 00:11:10]} 17. Na4
{[%emt 00:01:48] [%clk 00:09:14]} Ba3 {[%emt 00:01:15] [%clk 00:10:06]} 18. Ra1
{[%emt 00:00:23] [%clk 00:09:01]} Bd6 {[%emt 00:00:03] [%clk 00:10:13]} 19. Bxd6
{[%emt 00:00:21] [%clk 00:08:50]} Qxd6 {[%emt 00:00:02] [%clk 00:10:22]} 20. e3
{[%emt 00:00:01] [%clk 00:08:59]} Be4 {[%emt 00:00:18] [%clk 00:10:13]} 21. Qc5
{[%emt 00:01:09] [%clk 00:07:59]} Qe6 {[%emt 00:00:08] [%clk 00:10:16]} 22. Qc1
{[%emt 00:00:26] [%clk 00:07:43]} Bxg2 {[%emt 00:00:16] [%clk 00:10:10]} 23.
Kxg2 {[%emt 00:00:02] [%clk 00:07:51]} h5 {[%emt 00:00:02] [%clk 00:10:18]} 24.
Nc5 {[%emt 00:01:25] [%clk 00:06:37]} Qf5 {[%emt 00:00:08] [%clk 00:10:20]} 25.
Qb1 {[%emt 00:00:09] [%clk 00:06:38]} Qg5 {[%emt 00:00:10] [%clk 00:10:21]} 26.
h4 {[%emt 00:00:35] [%clk 00:06:12]} Qh6 {[%emt 00:00:05] [%clk 00:10:26]} 27.
Qf5 {[%emt 00:00:12] [%clk 00:06:10]} Ng4 {[%emt 00:00:46] [%clk 00:09:50]} 28.
Ra7 {[%emt 00:00:10] [%clk 00:06:10]} Rf8 {[%emt 00:00:39] [%clk 00:09:20]} 29.
Rxf7 {[%emt 00:01:04] [%clk 00:05:16]} Rxf7 {[%emt 00:00:09] [%clk 00:09:21]}
30. Qxc8+ {[%emt 00:00:02] [%clk 00:05:24]} Kh7 {[%clk 00:09:30]} 31. Ne6 {[%emt
00:00:16] [%clk 00:05:18]} 1-0

[Site "Europe Echecs"]

[Event "Championnat d'Europe Rapide"]
[Date "2024.12.07"]
[White "Pichot, Alan"]
[Black "Nevednichy, Vladislav"]
[WhiteElo "2637"]
[BlackElo "2451"]
[Round "6.29"]
[Result "0-1"]
[TimeControl "900+10"]

1. e4 {[%clk 00:15:17]} e6 {[%emt 00:00:06] [%clk 00:15:15]} 2. d4 {[%emt
00:00:05] [%clk 00:15:21]} d5 {[%emt 00:00:01] [%clk 00:15:24]} 3. Nc3 {[%emt
00:00:03] [%clk 00:15:29]} Nf6 {[%emt 00:00:02] [%clk 00:15:32]} 4. e5 {[%emt
00:00:05] [%clk 00:15:33]} Nfd7 {[%emt 00:00:02] [%clk 00:15:41]} 5. Nce2 {[%emt
00:00:10] [%clk 00:15:33]} c5 {[%emt 00:00:04] [%clk 00:15:47]} 6. c3 {[%emt
00:00:02] [%clk 00:15:41]} Nc6 {[%emt 00:00:07] [%clk 00:15:50]} 7. Nf3 {[%emt
00:00:02] [%clk 00:15:49]} a5 {[%emt 00:00:10] [%clk 00:15:50]} 8. a3 {[%emt
00:00:06] [%clk 00:15:53]} a4 {[%emt 00:00:37] [%clk 00:15:23]} 9. Nf4 {[%emt
00:01:44] [%clk 00:14:19]} Qa5 {[%emt 00:00:50] [%clk 00:14:43]} 10. Qd2 {[%emt
00:00:57] [%clk 00:13:31]} cxd4 {[%emt 00:00:40] [%clk 00:14:14]} 11. cxd4
{[%emt 00:00:03] [%clk 00:13:39]} Nb6 {[%emt 00:00:09] [%clk 00:14:14]} 12. h4
{[%emt 00:00:24] [%clk 00:13:24]} Bd7 {[%emt 00:00:15] [%clk 00:14:10]} 13. Be2
{[%emt 00:01:14] [%clk 00:12:20]} Be7 {[%emt 00:00:40] [%clk 00:13:40]} 14. O-O
{[%emt 00:00:23] [%clk 00:12:08]} Qxd2 {[%emt 00:00:04] [%clk 00:13:46]} 15.
Bxd2 {[%emt 00:00:01] [%clk 00:12:17]} O-O {[%emt 00:01:05] [%clk 00:12:51]} 16.
Rac1 {[%emt 00:00:15] [%clk 00:12:11]} Rfc8 {[%emt 00:00:41] [%clk 00:12:19]}
17. g3 {[%emt 00:02:14] [%clk 00:10:08]} Na5 {[%emt 00:03:43] [%clk 00:08:46]}
18. Bxa5 {[%emt 00:00:03] [%clk 00:10:14]} Rxa5 {[%emt 00:00:02] [%clk
00:08:55]} 19. Rxc8+ {[%emt 00:00:07] [%clk 00:10:17]} Nxc8 {[%emt 00:00:03]
[%clk 00:09:02]} 20. Rc1 {[%emt 00:00:02] [%clk 00:10:24]} Bc6 {[%emt 00:00:12]
[%clk 00:09:01]} 21. Nd3 {[%emt 00:01:37] [%clk 00:08:58]} Bd8 {[%emt 00:01:01]
[%clk 00:08:09]} 22. Nb4 {[%emt 00:02:37] [%clk 00:06:31]} Bd7 {[%emt 00:00:29]
[%clk 00:07:50]} 23. Ne1 {[%emt 00:00:02] [%clk 00:06:39]} Ne7 {[%emt 00:01:21]
[%clk 00:06:39]} 24. Bd3 {[%emt 00:02:59] [%clk 00:03:50]} Bb6 {[%emt 00:00:15]
[%clk 00:06:33]} 25. Nf3 {[%emt 00:00:16] [%clk 00:03:44]} h6 {[%emt 00:00:23]
[%clk 00:06:20]} 26. Kf1 {[%emt 00:00:14] [%clk 00:03:40]} Kf8 {[%emt 00:00:19]
[%clk 00:06:11]} 27. Ke2 {[%emt 00:00:05] [%clk 00:03:46]} Nc6 {[%emt 00:00:02]
[%clk 00:06:19]} 28. Nc2 {[%emt 00:00:09] [%clk 00:03:47]} Ra8 {[%emt 00:00:10]
[%clk 00:06:20]} 29. g4 {[%emt 00:01:12] [%clk 00:02:45]} Na5 {[%emt 00:00:34]
[%clk 00:05:56]} 30. Rg1 {[%emt 00:00:38] [%clk 00:02:16]} g6 {[%emt 00:00:28]
[%clk 00:05:39]} 31. h5 {[%emt 00:01:06] [%clk 00:01:20]} g5 {[%emt 00:00:10]
[%clk 00:05:39]} 32. Nd2 {[%emt 00:00:25] [%clk 00:01:04]} Rc8 {[%emt 00:00:52]
[%clk 00:04:58]} 33. Rf1 {[%emt 00:00:01] [%clk 00:01:13]} Nb3 {[%emt 00:00:07]
[%clk 00:05:01]} 34. Ke3 {[%emt 00:00:04] [%clk 00:01:19]} Rxc2 {[%emt 00:00:43]
[%clk 00:04:28]} 35. Bxc2 {[%emt 00:00:11] [%clk 00:01:18]} Nxd4 {[%emt
00:00:55] [%clk 00:03:43]} 36. Bd3 {[%emt 00:00:11] [%clk 00:01:17]} Nc6+ {[%emt
00:00:31] [%clk 00:03:22]} 37. Ke2 {[%emt 00:00:02] [%clk 00:01:24]} Nxe5 {[%emt
00:00:05] [%clk 00:03:27]} 38. Rg1 {[%emt 00:00:18] [%clk 00:01:17]} Nxd3 {[%emt
00:00:39] [%clk 00:02:58]} 39. Kxd3 {[%emt 00:00:01] [%clk 00:01:25]} Bxf2
{[%emt 00:00:14] [%clk 00:02:54]} 40. Rg2 {[%emt 00:00:59] [%clk 00:00:37]} Bb5+
{[%emt 00:00:13] [%clk 00:02:51]} 41. Kc3 {[%emt 00:00:08] [%clk 00:00:39]} Bc5
{[%emt 00:00:31] [%clk 00:02:30]} 42. Nf3 {[%emt 00:00:03] [%clk 00:00:47]} f6
{[%emt 00:00:20] [%clk 00:02:20]} 43. Nd4 {[%emt 00:00:35] [%clk 00:00:21]} Bd7
{[%emt 00:00:02] [%clk 00:02:29]} 44. Kd3 {[%emt 00:00:16] [%clk 00:00:16]} Ke7
{[%emt 00:00:25] [%clk 00:02:13]} 45. Rf2 {[%emt 00:00:02] [%clk 00:00:24]} b6
{[%emt 00:00:49] [%clk 00:01:35]} 46. Rf1 {[%emt 00:00:01] [%clk 00:00:32]} Kf7
{[%emt 00:00:26] [%clk 00:01:18]} 47. Kc3 {[%emt 00:00:06] [%clk 00:00:37]} Ke7
{[%emt 00:00:36] [%clk 00:00:52]} 48. Kd3 {[%emt 00:00:02] [%clk 00:00:46]} f5
{[%emt 00:00:26] [%clk 00:00:36]} 49. Re1 {[%emt 00:00:16] [%clk 00:00:40]} Kf6
{[%emt 00:00:14] [%clk 00:00:32]} 50. gxf5 {[%emt 00:00:04] [%clk 00:00:46]}
exf5 {[%emt 00:00:01] [%clk 00:00:41]} 51. Rd1 {[%emt 00:00:30] [%clk 00:00:26]}
f4 {[%emt 00:00:04] [%clk 00:00:47]} 52. Rf1 {[%emt 00:00:08] [%clk 00:00:27]}
Bf5+ {[%emt 00:00:06] [%clk 00:00:51]} 53. Kc3 {[%emt 00:00:20] [%clk 00:00:17]}
Be4 {[%emt 00:00:05] [%clk 00:00:55]} 54. b4 {[%emt 00:00:12] [%clk 00:00:16]}
axb3 {[%emt 00:00:07] [%clk 00:00:59]} 55. Nxb3 {[%emt 00:00:01] [%clk
00:00:24]} Bxa3 {[%emt 00:00:08]} 56. Ra1 {[%clk 00:00:32]} Bd6 {[%emt 00:00:07]
[%clk 00:01:07]} 57. Ra6 {[%emt 00:00:04] [%clk 00:00:38]} Bc7 {[%emt 00:00:10]
[%clk 00:01:07]} 58. Ra7 {[%emt 00:00:19] [%clk 00:00:30]} Be5+ {[%emt 00:00:02]
[%clk 00:01:15]} 59. Nd4 {[%emt 00:00:02] [%clk 00:00:38]} f3 {[%emt 00:00:14]
[%clk 00:01:11]} 60. Ra8 {[%emt 00:00:02] [%clk 00:00:47]} g4 {[%emt 00:00:07]
[%clk 00:01:13]} 61. Re8 {[%emt 00:00:03] [%clk 00:00:53]} Bxd4+ {[%emt
00:00:15] [%clk 00:01:08]} 62. Kxd4 {[%emt 00:00:01] [%clk 00:01:02]} g3 {[%emt
00:00:06] [%clk 00:01:12]} 63. Ke3 {[%emt 00:00:09] [%clk 00:01:02]}

[Site "Europe Echecs"]

[Event "Championnat d'Europe Rapide"]
[Date "2024.12.07"]
[White "Djukic, Nikola"]
[Black "Gaponenko, Inna"]
[WhiteElo "2493"]
[BlackElo "2343"]
[Round "6.30"]
[Result "0-1"]
[TimeControl "900+10"]

1. e4 {[%emt 00:00:02] [%clk 00:15:17]} c5 {[%emt 00:00:01] [%clk 00:15:20]} 2.
Nf3 {[%emt 00:00:03] [%clk 00:15:24]} g6 {[%clk 00:15:29]} 3. d4 {[%emt
00:00:36] [%clk 00:14:57]} cxd4 {[%emt 00:00:02] [%clk 00:15:37]} 4. Nxd4 {[%emt
00:00:02] [%clk 00:15:05]} Nc6 {[%emt 00:00:01] [%clk 00:15:46]} 5. c4 {[%emt
00:00:23] [%clk 00:14:52]} Bg7 {[%emt 00:00:58] [%clk 00:14:59]} 6. Be3 {[%emt
00:00:02] [%clk 00:15:00]} Nf6 {[%emt 00:00:01] [%clk 00:15:07]} 7. Nc3 {[%emt
00:00:01] [%clk 00:15:09]} O-O {[%emt 00:00:02] [%clk 00:15:16]} 8. Be2 {[%emt
00:00:11] [%clk 00:15:08]} b6 {[%emt 00:00:01] [%clk 00:15:25]} 9. O-O {[%emt
00:00:26] [%clk 00:14:51]} Bb7 {[%emt 00:00:01] [%clk 00:15:34]} 10. Nc2 {[%emt
00:00:49] [%clk 00:14:11]} e6 {[%emt 00:02:03] [%clk 00:13:41]} 11. f4 {[%emt
00:00:18] [%clk 00:14:03]} d5 {[%emt 00:00:37] [%clk 00:13:15]} 12. e5 {[%emt
00:00:49] [%clk 00:13:24]} Ne4 {[%emt 00:00:04] [%clk 00:13:20]} 13. Nxe4 {[%emt
00:01:51] [%clk 00:11:43]} dxe4 {[%emt 00:00:01] [%clk 00:13:29]} 14. c5 {[%emt
00:02:29] [%clk 00:09:25]} bxc5 {[%emt 00:05:42] [%clk 00:07:57]} 15. Bxc5
{[%emt 00:00:02] [%clk 00:09:32]} Qxd1 {[%emt 00:00:01] [%clk 00:08:06]} 16.
Raxd1 {[%clk 00:09:27]} Rfc8 {[%emt 00:00:17] [%clk 00:08:15]} 17. Rd7 {[%emt
00:07:08] [%clk 00:02:29]} Nxe5 {[%emt 00:00:02] [%clk 00:08:23]} 18. fxe5
{[%emt 00:00:07] [%clk 00:02:31]} Rxc5 {[%emt 00:00:01] [%clk 00:08:32]} 19.
Rxb7 {[%emt 00:00:18] [%clk 00:02:23]} Rxc2 {[%emt 00:00:05] [%clk 00:08:37]}
20. Rfxf7 {[%emt 00:00:51] [%clk 00:01:42]} Bxe5 {[%emt 00:00:30] [%clk
00:08:18]} 21. Bg4 {[%emt 00:00:02] [%clk 00:01:50]} Bd4+ {[%emt 00:02:55] [%clk
00:05:33]} 22. Kf1 {[%emt 00:00:14] [%clk 00:01:46]} Rc1+ {[%emt 00:00:02] [%clk
00:05:41]} 23. Ke2 {[%emt 00:00:10] [%clk 00:01:45]} Rac8 {[%emt 00:00:02] [%clk
00:05:49]} 24. Rg7+ {[%emt 00:00:55] [%clk 00:01:00]} Bxg7 {[%emt 00:00:03]
[%clk 00:05:56]} 25. Bxe6+ {[%emt 00:00:02] [%clk 00:01:08]} Kh8 {[%emt
00:01:18] [%clk 00:04:48]} 26. Bxc8 {[%emt 00:00:02] [%clk 00:01:16]} Rxc8
{[%emt 00:00:02] [%clk 00:04:56]} 27. Ke3 {[%clk 00:01:25]} Re8 {[%emt 00:00:09]
[%clk 00:04:57]} 28. Rxa7 {[%emt 00:00:03] [%clk 00:01:31]} Bxb2 {[%emt
00:00:44] [%clk 00:04:23]} 29. Ra4 {[%emt 00:00:33] [%clk 00:01:08]} Bc1+ {[%emt
00:00:19] [%clk 00:04:13]} 30. Ke2 {[%emt 00:00:01] [%clk 00:01:17]} e3 {[%emt
00:00:14] [%clk 00:04:10]} 31. Rc4 {[%emt 00:00:05] [%clk 00:01:22]} Bd2 {[%emt
00:00:01] [%clk 00:04:18]} 32. a4 {[%emt 00:00:28] [%clk 00:01:04]} Ra8 {[%emt
00:00:12] [%clk 00:04:16]} 33. g4 {[%emt 00:00:06] [%clk 00:01:08]} g5 {[%emt
00:01:13] [%clk 00:03:14]} 34. h3 {[%emt 00:00:09] [%clk 00:01:09]} Ra7 {[%emt
00:00:55] [%clk 00:02:29]} 35. Kd3 {[%emt 00:00:36] [%clk 00:00:42]} Kg7 {[%emt
00:00:02] [%clk 00:02:37]} 36. Ke2 {[%emt 00:00:05] [%clk 00:00:48]} Kf6 {[%emt
00:00:21] [%clk 00:02:26]} 37. Re4 {[%emt 00:00:02] [%clk 00:00:56]} Ra6 {[%emt
00:00:23] [%clk 00:02:13]} 38. Rc4 {[%emt 00:00:28] [%clk 00:00:38]} Ra7 {[%emt
00:00:13] [%clk 00:02:10]} 39. Re4 {[%emt 00:00:02] [%clk 00:00:45]} h6 {[%emt
00:00:11] [%clk 00:02:09]} 40. Rc4 {[%emt 00:00:14] [%clk 00:00:41]} Ra6 {[%emt
00:00:21] [%clk 00:01:59]} 41. Re4 {[%emt 00:00:02] [%clk 00:00:48]} Re6 {[%emt
00:00:13] [%clk 00:01:56]} 42. Rc4 {[%emt 00:00:02] [%clk 00:00:56]} Ke5 {[%emt
00:00:05] [%clk 00:02:01]} 43. Rc5+ {[%emt 00:00:19] [%clk 00:00:47]} Kf4 {[%emt
00:00:08] [%clk 00:02:03]} 0-1

[Site "Europe Echecs"]

[Event "Championnat d'Europe Rapide"]
[Date "2024.12.07"]
[White "Veljanoski, Andrej"]
[Black "Smeets, Jan"]
[WhiteElo "2304"]
[BlackElo "2552"]
[Round "6.31"]
[Result "0-1"]
[TimeControl "900+10"]

1. e4 {[%emt 00:00:02] [%clk 00:15:16]} c6 {[%emt 00:00:02] [%clk 00:15:19]} 2.
d4 {[%emt 00:00:01] [%clk 00:15:24]} d5 {[%emt 00:00:01] [%clk 00:15:28]} 3. e5
{[%clk 00:15:33]} Bf5 {[%emt 00:00:02] [%clk 00:15:36]} 4. Nf3 {[%emt 00:00:08]
[%clk 00:15:35]} e6 {[%emt 00:00:01] [%clk 00:15:45]} 5. Be2 {[%emt 00:00:01]
[%clk 00:15:43]} Nd7 {[%emt 00:00:02] [%clk 00:15:54]} 6. O-O {[%emt 00:00:07]
[%clk 00:15:46]} Ne7 {[%emt 00:00:02] [%clk 00:16:03]} 7. a4 {[%emt 00:00:03]
[%clk 00:15:53]} Qc7 {[%emt 00:00:05] [%clk 00:16:08]} 8. Nbd2 {[%emt 00:00:15]
[%clk 00:15:48]} f6 {[%emt 00:01:09] [%clk 00:15:09]} 9. Re1 {[%emt 00:00:30]
[%clk 00:15:27]} fxe5 {[%emt 00:00:48] [%clk 00:14:31]} 10. Nxe5 {[%emt
00:00:03] [%clk 00:15:34]} Nxe5 {[%emt 00:00:03] [%clk 00:14:38]} 11. dxe5
{[%emt 00:00:02] [%clk 00:15:42]} O-O-O {[%emt 00:00:50] [%clk 00:14:00]} 12.
Nf3 {[%emt 00:01:15] [%clk 00:14:36]} c5 {[%emt 00:01:37] [%clk 00:12:33]} 13.
a5 {[%emt 00:02:12] [%clk 00:12:33]} a6 {[%emt 00:00:23] [%clk 00:12:21]} 14. b4
{[%emt 00:02:46] [%clk 00:09:57]} cxb4 {[%emt 00:00:01] [%clk 00:12:29]} 15. Nd4
{[%emt 00:01:33] [%clk 00:08:33]} Nc6 {[%emt 00:00:02] [%clk 00:12:37]} 16. Nxf5
{[%emt 00:01:03] [%clk 00:07:40]} exf5 {[%emt 00:00:02] [%clk 00:12:45]} 17. Bf4
{[%emt 00:00:01] [%clk 00:07:49]} Bc5 {[%emt 00:01:28] [%clk 00:11:27]} 18. Bd3
{[%emt 00:00:52] [%clk 00:07:07]} g6 {[%emt 00:00:11] [%clk 00:11:26]} 19. g4
{[%emt 00:01:30] [%clk 00:05:47]} Kb8 {[%emt 00:00:54] [%clk 00:10:42]} 20. gxf5
{[%emt 00:00:30] [%clk 00:05:27]} gxf5 {[%emt 00:00:02] [%clk 00:10:50]} 21. Qh5
{[%emt 00:01:17] [%clk 00:04:20]} Rhg8+ {[%emt 00:00:23] [%clk 00:10:37]} 22.
Kf1 {[%emt 00:00:02] [%clk 00:04:28]} Qg7 {[%emt 00:00:23] [%clk 00:10:25]} 23.
e6+ {[%emt 00:01:31] [%clk 00:03:06]} Ka7 {[%emt 00:00:01] [%clk 00:10:34]} 24.
Bg3 {[%emt 00:02:31] [%clk 00:00:45]} f4 {[%emt 00:00:11] [%clk 00:10:33]} 25.
Qxh7 {[%emt 00:00:29] [%clk 00:00:26]} fxg3 {[%emt 00:00:20] [%clk 00:10:22]}
0-1

[Site "Europe Echecs"]

[Event "Championnat d'Europe Rapide"]
[Date "2024.12.07"]
[White "Kadric, Denis"]
[Black "Denk, Adolf"]
[WhiteElo "2544"]
[BlackElo "2113"]
[Round "6.32"]
[Result "1-0"]
[TimeControl "900+10"]

1. e4 {[%clk 00:15:18]} e5 {[%emt 00:00:12] [%clk 00:15:09]} 2. Nf3 {[%emt
00:00:02] [%clk 00:15:26]} Nf6 {[%clk 00:15:18]} 3. d3 {[%emt 00:00:13] [%clk
00:15:24]} Nc6 {[%emt 00:00:20] [%clk 00:15:08]} 4. c3 {[%clk 00:15:33]} d5
{[%emt 00:00:42] [%clk 00:14:35]} 5. Nbd2 {[%clk 00:15:42]} Be7 {[%emt 00:00:42]
[%clk 00:14:05]} 6. b4 {[%emt 00:00:23] [%clk 00:15:29]} a6 {[%emt 00:00:42]
[%clk 00:13:33]} 7. Bb2 {[%clk 00:15:38]} O-O {[%emt 00:01:40] [%clk 00:12:04]}
8. Be2 {[%emt 00:00:01] [%clk 00:15:47]} Re8 {[%emt 00:00:21] [%clk 00:11:53]}
9. O-O {[%emt 00:00:02] [%clk 00:15:55]} Bf8 {[%emt 00:00:08] [%clk 00:11:55]}
10. a3 {[%emt 00:00:27] [%clk 00:15:37]} Bg4 {[%emt 00:01:12] [%clk 00:10:52]}
11. Qc2 {[%emt 00:00:28] [%clk 00:15:20]} Qd7 {[%emt 00:00:43] [%clk 00:10:19]}
12. Rfe1 {[%emt 00:00:02] [%clk 00:15:28]} Rad8 {[%emt 00:00:06] [%clk
00:10:23]} 13. Bf1 {[%emt 00:01:46] [%clk 00:13:51]} dxe4 {[%emt 00:03:53] [%clk
00:06:41]} 14. dxe4 {[%emt 00:00:02] [%clk 00:14:00]} h6 {[%emt 00:00:20] [%clk
00:06:30]} 15. h3 {[%emt 00:00:03] [%clk 00:14:07]} Be6 {[%emt 00:00:13] [%clk
00:06:27]} 16. Nc4 {[%emt 00:03:28] [%clk 00:10:49]} Bxc4 {[%emt 00:01:54] [%clk
00:04:43]} 17. Bxc4 {[%emt 00:00:02] [%clk 00:10:57]} Qe7 {[%emt 00:00:18] [%clk
00:04:34]} 18. a4 {[%emt 00:02:30] [%clk 00:08:38]} Nd7 {[%emt 00:02:14] [%clk
00:02:29]} 19. Bd5 {[%emt 00:01:17] [%clk 00:07:32]} Qf6 {[%emt 00:00:29] [%clk
00:02:09]} 20. a5 {[%emt 00:01:01] [%clk 00:06:42]} Rb8 {[%emt 00:00:31] [%clk
00:01:48]} 21. Rad1 {[%emt 00:00:12] [%clk 00:06:40]} Red8 {[%emt 00:00:16]
[%clk 00:01:42]} 22. Re3 {[%emt 00:00:26] [%clk 00:06:25]} Bd6 {[%emt 00:00:25]
[%clk 00:01:26]} 23. Nd2 {[%emt 00:00:41] [%clk 00:05:54]} Ne7 {[%emt 00:00:07]
[%clk 00:01:29]} 24. Ba2 {[%emt 00:00:55] [%clk 00:05:08]} Rf8 {[%emt 00:00:16]
[%clk 00:01:23]} 25. Rf3 {[%emt 00:00:11] [%clk 00:05:07]} Qg6 {[%emt 00:00:16]
[%clk 00:01:17]} 26. Nc4 {[%emt 00:00:03] [%clk 00:05:15]} Rbd8 {[%emt 00:00:11]
[%clk 00:01:15]} 27. Rg3 {[%emt 00:00:06] [%clk 00:05:19]} Qf6 {[%emt 00:00:21]
[%clk 00:01:04]} 28. Ne3 {[%emt 00:00:01] [%clk 00:05:28]} g6 {[%emt 00:00:17]
[%clk 00:00:58]} 29. Bc1 {[%emt 00:00:57] [%clk 00:04:41]} h5 {[%emt 00:00:26]
[%clk 00:00:42]} 30. Nf5 {[%clk 00:04:50]} Kh7 {[%emt 00:00:19] [%clk 00:00:33]}
31. Bg5 {[%emt 00:00:06] [%clk 00:04:53]} 1-0

[Site "Europe Echecs"]

[Event "Championnat d'Europe Rapide"]
[Date "2024.12.07"]
[White "Zlatkov, Anton"]
[Black "Livaic, Leon"]
[WhiteElo "2324"]
[BlackElo "2560"]
[Round "6.33"]
[Result "0-1"]
[TimeControl "900+10"]

1. e4 {[%emt 00:29:26] [%clk 00:15:19]} d6 {[%emt 00:00:03] [%clk 00:15:17]} 2.
d4 {[%clk 00:15:28]} Nf6 {[%emt 00:00:02] [%clk 00:15:26]} 3. Nc3 {[%clk
00:15:37]} e5 {[%emt 00:00:03] [%clk 00:15:33]} 4. Nge2 {[%emt 00:00:08] [%clk
00:15:38]} c6 {[%emt 00:00:03] [%clk 00:15:41]} 5. a4 {[%emt 00:00:02] [%clk
00:15:47]} Be7 {[%emt 00:00:05] [%clk 00:15:46]} 6. g3 {[%emt 00:00:01] [%clk
00:15:55]} h5 {[%emt 00:00:43] [%clk 00:15:12]} 7. h3 {[%emt 00:00:04] [%clk
00:16:02]} Nbd7 {[%emt 00:00:04] [%clk 00:15:18]} 8. Bg2 {[%emt 00:00:01] [%clk
00:16:11]} b6 {[%emt 00:00:19] [%clk 00:15:09]} 9. O-O {[%emt 00:00:06] [%clk
00:16:14]} Bb7 {[%emt 00:00:17] [%clk 00:15:03]} 10. f4 {[%emt 00:00:46] [%clk
00:15:38]} a6 {[%emt 00:00:12] [%clk 00:15:01]} 11. Be3 {[%emt 00:00:22] [%clk
00:15:25]} b5 {[%emt 00:00:11] [%clk 00:15:01]} 12. axb5 {[%emt 00:01:34] [%clk
00:14:01]} axb5 {[%emt 00:00:02] [%clk 00:15:09]} 13. d5 {[%emt 00:02:36] [%clk
00:11:34]} O-O {[%emt 00:01:07] [%clk 00:14:11]} 14. Rxa8 {[%emt 00:00:42] [%clk
00:11:03]} Qxa8 {[%emt 00:00:11] [%clk 00:14:10]} 15. dxc6 {[%emt 00:00:01]
[%clk 00:11:12]} Bxc6 {[%emt 00:00:02] [%clk 00:14:18]} 16. Nd5 {[%clk
00:11:22]} Bxd5 {[%emt 00:00:20] [%clk 00:14:09]} 17. exd5 {[%emt 00:00:01]
[%clk 00:11:31]} Qa6 {[%emt 00:03:26] [%clk 00:10:53]} 18. fxe5 {[%emt 00:02:13]
[%clk 00:09:28]} dxe5 {[%emt 00:00:01] [%clk 00:11:02]} 19. Qd3 {[%emt 00:00:23]
[%clk 00:09:14]} Bc5 {[%emt 00:00:52] [%clk 00:10:20]} 20. Kh2 {[%emt 00:00:25]
[%clk 00:09:00]} Bxe3 {[%emt 00:00:20] [%clk 00:10:10]} 21. Qxe3 {[%emt
00:00:01] [%clk 00:09:09]} b4 {[%emt 00:01:32] [%clk 00:08:47]} 22. Rd1 {[%emt
00:00:24] [%clk 00:08:55]} Qa2 {[%emt 00:01:09] [%clk 00:07:48]} 23. Qc1 {[%emt
00:01:41]} Rc8 {[%clk 00:07:39]} 24. c3 {[%emt 00:00:04] [%clk 00:07:50]} bxc3
{[%emt 00:03:09] [%clk 00:04:40]} 25. Nxc3 {[%emt 00:00:01] [%clk 00:07:58]} Qc4
{[%emt 00:00:07] [%clk 00:04:43]} 26. Qe3 {[%emt 00:00:09] [%clk 00:07:59]} Rb8
{[%emt 00:00:37] [%clk 00:04:17]} 27. Rd2 {[%emt 00:00:06] [%clk 00:08:02]} h4
{[%emt 00:00:03] [%clk 00:04:25]} 28. d6 {[%emt 00:00:41] [%clk 00:07:31]} hxg3+
{[%emt 00:00:32] [%clk 00:04:04]} 29. Qxg3 {[%clk 00:07:40]} e4 {[%emt 00:01:27]
[%clk 00:02:48]} 30. Qf4 {[%emt 00:00:05] [%clk 00:07:44]} Re8 {[%emt 00:00:18]
[%clk 00:02:41]} 31. Bf1 {[%emt 00:02:15] [%clk 00:05:38]} Qe6 {[%emt 00:00:13]
[%clk 00:02:38]} 32. Bb5 {[%emt 00:00:33] [%clk 00:05:16]} Rd8 {[%emt 00:00:35]
[%clk 00:02:14]} 33. Re2 {[%emt 00:01:27] [%clk 00:03:59]} Nc5 {[%emt 00:00:12]}
34. b4 {[%clk 00:04:04]} Nh5 {[%emt 00:01:22] [%clk 00:01:05]} 35. Qe3 {[%emt
00:02:42] [%clk 00:01:31]} Qxd6+ {[%emt 00:00:07] [%clk 00:01:08]} 36. Kg1
{[%emt 00:00:01] [%clk 00:01:40]} Ne6 {[%emt 00:00:30] [%clk 00:00:48]} 37. Nxe4
{[%emt 00:00:39] [%clk 00:01:12]} Qxb4 {[%emt 00:00:02] [%clk 00:00:56]} 38. Nc3
{[%emt 00:00:57] [%clk 00:00:24]} Nhf4 {[%emt 00:00:11] [%clk 00:00:55]} 39. Rf2
{[%emt 00:00:09] [%clk 00:00:26]} Rc8 {[%emt 00:00:40] [%clk 00:00:25]} 40. Rc2
{[%emt 00:00:14] [%clk 00:00:22]} Nd4 {[%emt 00:00:21] [%clk 00:00:14]} 41. Rd2
{[%emt 00:00:14] [%clk 00:00:18]} Nxb5 {[%emt 00:00:07] [%clk 00:00:16]} 42.
Nxb5 {[%emt 00:00:02] [%clk 00:00:27]} Nxh3+ {[%emt 00:00:07] [%clk 00:00:20]}
43. Qxh3 {[%emt 00:00:02] [%clk 00:00:35]} Rc1+ {[%emt 00:00:03] [%clk
00:00:27]} 0-1

[Site "Europe Echecs"]